[Event "Early-Titled-Tuesday-Blitz-July-09-2024"]
[Site "Chess.com"]
[Date "2024.07.09"]
[Round "5"]
[White "rasmussvane"]
[Black "hakanazeri2"]
[Result "1/2-1/2"]
[WhiteElo "2908"]
[BlackElo "2643"]
[TimeControl "180+1"]
[EndTime "9:01:19 PDT"]
[Termination "Game drawn by repetition"]

1. Nf3 {[%clk 0:02:57.6]} 1... Nf6 {[%clk 0:02:59]} 2. g3 {[%clk 0:02:56.4]}
2... d5 {[%clk 0:02:59]} 3. Bg2 {[%clk 0:02:56.6]} 3... e6 {[%clk 0:02:57.1]} 4.
O-O {[%clk 0:02:56.4]} 4... Be7 {[%clk 0:02:57.8]} 5. c4 {[%clk 0:02:55.4]} 5...
O-O {[%clk 0:02:58.2]} 6. b3 {[%clk 0:02:51.2]} 6... c5 {[%clk 0:02:58.3]} 7.
cxd5 {[%clk 0:02:48]} 7... Nxd5 {[%clk 0:02:59.2]} 8. Nc3 {[%clk 0:02:47.8]}
8... Bf6 {[%clk 0:02:54.1]} 9. Bb2 {[%clk 0:02:47.8]} 9... b6 {[%clk 0:02:49.4]}
10. Qc2 {[%clk 0:02:29.1]} 10... Bb7 {[%clk 0:02:41.8]} 11. Rad1 {[%clk
0:02:28]} 11... Nd7 {[%clk 0:02:18.9]} 12. Nxd5 {[%clk 0:02:15.5]} 12... Bxb2
{[%clk 0:01:54.4]} 13. Nxb6 {[%clk 0:02:06.3]} 13... axb6 {[%clk 0:01:44.9]} 14.
Qxb2 {[%clk 0:02:06.1]} 14... Qf6 {[%clk 0:01:44.7]} 15. Qxf6 {[%clk 0:01:43.1]}
15... Nxf6 {[%clk 0:01:44.4]} 16. a4 {[%clk 0:01:43.5]} 16... Bd5 {[%clk
0:01:23.1]} 17. Ne5 {[%clk 0:01:33.5]} 17... Bxb3 {[%clk 0:01:11.7]} 18. Rb1
{[%clk 0:01:31.4]} 18... Bd5 {[%clk 0:01:11.9]} 19. Rxb6 {[%clk 0:01:23.4]}
19... Rxa4 {[%clk 0:01:08.3]} 20. d3 {[%clk 0:01:23.7]} 20... Rc8 {[%clk
0:01:00.7]} 21. Rc1 {[%clk 0:01:20.3]} 21... h5 {[%clk 0:00:37.2]} 22. Rb2
{[%clk 0:01:11.7]} 22... Ng4 {[%clk 0:00:19.4]} 23. Nxg4 {[%clk 0:01:03.5]}
23... hxg4 {[%clk 0:00:19.3]} 24. Rbc2 {[%clk 0:01:04.2]} 24... c4 {[%clk
0:00:17.7]} 25. e4 {[%clk 0:00:37.6]} 25... Bb7 {[%clk 0:00:10]} 26. Rxc4 {[%clk
0:00:37.6]} 26... Rcxc4 {[%clk 0:00:08.2]} 27. dxc4 {[%clk 0:00:35.1]} 27... Kf8
{[%clk 0:00:08.8]} 28. c5 {[%clk 0:00:28.3]} 28... Ke7 {[%clk 0:00:04.4]} 29. c6
{[%clk 0:00:24.8]} 29... Bc8 {[%clk 0:00:05]} 30. e5 {[%clk 0:00:25.2]} 30...
Kd8 {[%clk 0:00:05.5]} 31. h3 {[%clk 0:00:21.6]} 31... gxh3 {[%clk 0:00:05.2]}
32. Bxh3 {[%clk 0:00:22.5]} 32... Kc7 {[%clk 0:00:05.8]} 33. Bg2 {[%clk
0:00:22.8]} 33... Ra5 {[%clk 0:00:05.4]} 34. f4 {[%clk 0:00:21.2]} 34... Ba6
{[%clk 0:00:05.7]} 35. Rd1 {[%clk 0:00:21]} 35... Bc8 {[%clk 0:00:06.1]} 36. Rd2
{[%clk 0:00:19.1]} 36... Rc5 {[%clk 0:00:05.6]} 37. Kf2 {[%clk 0:00:19.1]} 37...
f6 {[%clk 0:00:05.9]} 38. exf6 {[%clk 0:00:16.3]} 38... gxf6 {[%clk 0:00:06.8]}
39. Bf3 {[%clk 0:00:15.6]} 39... e5 {[%clk 0:00:06.8]} 40. fxe5 {[%clk
0:00:14.4]} 40... fxe5 {[%clk 0:00:07.4]} 41. Be4 {[%clk 0:00:13.1]} 41... Rc3
{[%clk 0:00:03.7]} 42. Ra2 {[%clk 0:00:11.6]} 42... Rc4 {[%clk 0:00:02.1]} 43.
Ke3 {[%clk 0:00:08.7]} 43... Rc3+ {[%clk 0:00:02.4]} 44. Kf2 {[%clk 0:00:09.3]}
44... Rc4 {[%clk 0:00:02.7]} 45. Re2 {[%clk 0:00:08.6]} 45... Bg4 {[%clk
0:00:02.3]} 46. Re3 {[%clk 0:00:08.3]} 46... Bc8 {[%clk 0:00:01.9]} 47. Bd5
{[%clk 0:00:07.8]} 47... Rc2+ {[%clk 0:00:02.1]} 48. Kf3 {[%clk 0:00:08.2]}
48... Kd6 {[%clk 0:00:02.5]} 49. Be4 {[%clk 0:00:08]} 49... Rc5 {[%clk
0:00:01.6]} 50. g4 {[%clk 0:00:08.1]} 50... Rc1 {[%clk 0:00:02]} 51. g5 {[%clk
0:00:07.2]} 51... Rg1 {[%clk 0:00:02]} 52. g6 {[%clk 0:00:07.5]} 52... Rf1+
{[%clk 0:00:01.2]} 53. Kg2 {[%clk 0:00:06.7]} 53... Rf4 {[%clk 0:00:01.1]} 54.
Bf3 {[%clk 0:00:02.8]} 54... Be6 {[%clk 0:00:01.3]} 55. Re4 {[%clk 0:00:03.1]}
55... Rf6 {[%clk 0:00:01]} 56. Ra4 {[%clk 0:00:03.2]} 56... Rxg6+ {[%clk
0:00:01.3]} 57. Kf2 {[%clk 0:00:03.9]} 57... Kc7 {[%clk 0:00:01.6]} 58. Ra7+
{[%clk 0:00:04.2]} 58... Kd6 {[%clk 0:00:02.2]} 59. c7 {[%clk 0:00:04.6]} 59...
Bc8 {[%clk 0:00:02.2]} 60. Ra8 {[%clk 0:00:04.5]} 60... Rg8 {[%clk 0:00:02.4]}
61. Ra7 {[%clk 0:00:03.7]} 61... Rg7 {[%clk 0:00:02.4]} 62. Ra2 {[%clk
0:00:02.9]} 62... Rxc7 {[%clk 0:00:02.7]} 63. Rd2+ {[%clk 0:00:03.8]} 63... Ke7
{[%clk 0:00:03.4]} 64. Ke3 {[%clk 0:00:04.7]} 64... Be6 {[%clk 0:00:03.9]} 65.
Be4 {[%clk 0:00:05.2]} 65... Ra7 {[%clk 0:00:03.8]} 66. Rh2 {[%clk 0:00:04.9]}
66... Ra3+ {[%clk 0:00:04.2]} 67. Kf2 {[%clk 0:00:05.1]} 67... Kd6 {[%clk
0:00:03.9]} 68. Rh6 {[%clk 0:00:04.8]} 68... Ke7 {[%clk 0:00:04.1]} 69. Rh7+
{[%clk 0:00:04.2]} 69... Kd6 {[%clk 0:00:03.8]} 70. Rh6 {[%clk 0:00:05.1]} 70...
Ke7 {[%clk 0:00:04.2]} 71. Bf3 {[%clk 0:00:05.4]} 71... Bf5 {[%clk 0:00:03.7]}
72. Bd5 {[%clk 0:00:05.1]} 72... Rd3 {[%clk 0:00:03.1]} 73. Bc4 {[%clk
0:00:04.3]} 73... Rd4 {[%clk 0:00:03.5]} 74. Be2 {[%clk 0:00:04.4]} 74... Be6
{[%clk 0:00:02.4]} 75. Ke3 {[%clk 0:00:04.6]} 75... Rb4 {[%clk 0:00:01.6]} 76.
Rh7+ {[%clk 0:00:04.9]} 76... Kd6 {[%clk 0:00:02.2]} 77. Rh6 {[%clk 0:00:05.8]}
77... Rb3+ {[%clk 0:00:02.8]} 78. Kd2 {[%clk 0:00:05.5]} 78... Rb2+ {[%clk
0:00:02.9]} 79. Ke1 {[%clk 0:00:05.2]} 79... Kd5 {[%clk 0:00:02.5]} 80. Bf3+
{[%clk 0:00:04.8]} 80... e4 {[%clk 0:00:02.6]} 81. Bxe4+ {[%clk 0:00:04.9]}
81... Ke5 {[%clk 0:00:02.4]} 82. Bf3 {[%clk 0:00:04.7]} 82... Bf5 {[%clk
0:00:02.4]} 83. Be2 {[%clk 0:00:04.8]} 83... Kf4 {[%clk 0:00:02.5]} 84. Rf6
{[%clk 0:00:04.9]} 84... Ke5 {[%clk 0:00:02.5]} 85. Rf8 {[%clk 0:00:04.9]} 85...
Be4 {[%clk 0:00:03]} 86. Re8+ {[%clk 0:00:05.3]} 86... Kf4 {[%clk 0:00:03.4]}
87. Rf8+ {[%clk 0:00:05.2]} 87... Ke3 {[%clk 0:00:03.5]} 88. Bd1 {[%clk
0:00:04.2]} 88... Rh2 {[%clk 0:00:02.8]} 89. Rf1 {[%clk 0:00:04.4]} 89... Bd5
{[%clk 0:00:01.9]} 90. Rg1 {[%clk 0:00:04.4]} 90... Be4 {[%clk 0:00:02.2]} 91.
Rg3+ {[%clk 0:00:04.4]} 91... Kf4 {[%clk 0:00:02.8]} 92. Rc3 {[%clk 0:00:04.6]}
92... Rh1+ {[%clk 0:00:02.6]} 93. Kd2 {[%clk 0:00:04.9]} 93... Rh2+ {[%clk
0:00:03.5]} 94. Be2 {[%clk 0:00:05.3]} 94... Rh8 {[%clk 0:00:04.1]} 95. Rc4
{[%clk 0:00:05.6]} 95... Rd8+ {[%clk 0:00:04]} 96. Ke1 {[%clk 0:00:05.7]} 96...
Ke3 {[%clk 0:00:03.7]} 97. Rc3+ {[%clk 0:00:06.2]} 97... Kf4 {[%clk 0:00:04.2]}
98. Ra3 {[%clk 0:00:06.5]} 98... Rb8 {[%clk 0:00:03.9]} 99. Ra4 {[%clk
0:00:06.1]} 99... Rb3 {[%clk 0:00:04]} 100. Kf2 {[%clk 0:00:05.9]} 100... Rb2
{[%clk 0:00:03.8]} 101. Ke1 {[%clk 0:00:06.3]} 101... Ke3 {[%clk 0:00:03.4]}
102. Ra3+ {[%clk 0:00:06.8]} 102... Kf4 {[%clk 0:00:03.9]} 103. Rc3 {[%clk
0:00:06.7]} 103... Ra2 {[%clk 0:00:04]} 104. Rb3 {[%clk 0:00:06.9]} 104... Rc2
{[%clk 0:00:03.9]} 105. Ra3 {[%clk 0:00:06.9]} 105... Rb2 {[%clk 0:00:04.1]}
106. Kf2 {[%clk 0:00:06.4]} 106... Rd2 {[%clk 0:00:03]} 107. Rh3 {[%clk
0:00:05.6]} 107... Rb2 {[%clk 0:00:02.6]} 108. Rh4+ {[%clk 0:00:06]} 108... Ke5
{[%clk 0:00:03.3]} 109. Ke3 {[%clk 0:00:06.3]} 109... Rb3+ {[%clk 0:00:03.9]}
110. Kd2 {[%clk 0:00:06.9]} 110... Kd4 {[%clk 0:00:04.2]} 111. Rg4 {[%clk
0:00:03.9]} 111... Rb2+ {[%clk 0:00:04.2]} 112. Ke1 {[%clk 0:00:04.4]} 112...
Ke3 {[%clk 0:00:04.1]} 113. Rg3+ {[%clk 0:00:04.8]} 113... Kf4 {[%clk
0:00:04.6]} 114. Rc3 {[%clk 0:00:05.1]} 114... Ra2 {[%clk 0:00:03.4]} 115. Kf2
{[%clk 0:00:05.2]} 115... Rb2 {[%clk 0:00:03.7]} 116. Ke1 {[%clk 0:00:04.3]}
1/2-1/2

[Event "Early-Titled-Tuesday-Blitz-July-09-2024"]
[Site "Chess.com"]
[Date "2024.07.09"]
[Round "6"]
[White "ansko1999"]
[Black "pouya21"]
[Result "0-1"]
[WhiteElo "2626"]
[BlackElo "2863"]
[TimeControl "180+1"]
[EndTime "9:04:53 PDT"]
[Termination "pouya21 won by resignation"]

1. Nc3 {[%clk 0:03:00.9]} 1... e6 {[%clk 0:03:00.9]} 2. Nf3 {[%clk 0:02:58.6]}
2... c5 {[%clk 0:02:59.8]} 3. e4 {[%clk 0:02:56.9]} 3... Nc6 {[%clk 0:02:58.8]}
4. g3 {[%clk 0:02:56.5]} 4... a6 {[%clk 0:02:53.2]} 5. d4 {[%clk 0:02:55]} 5...
cxd4 {[%clk 0:02:54.1]} 6. Nxd4 {[%clk 0:02:55.8]} 6... Qc7 {[%clk 0:02:53.9]}
7. Bg2 {[%clk 0:02:54.2]} 7... Nf6 {[%clk 0:02:53.3]} 8. O-O {[%clk 0:02:52.2]}
8... Nxd4 {[%clk 0:02:52.9]} 9. Qxd4 {[%clk 0:02:53.1]} 9... Bc5 {[%clk
0:02:53]} 10. Qd3 {[%clk 0:02:53.3]} 10... Ng4 {[%clk 0:02:50.9]} 11. Bf4 {[%clk
0:02:48.9]} 11... Ne5 {[%clk 0:02:50.3]} 12. Qe2 {[%clk 0:02:44.6]} 12... d6
{[%clk 0:02:50.3]} 13. Rad1 {[%clk 0:02:40.3]} 13... b5 {[%clk 0:02:47.2]} 14.
a4 {[%clk 0:02:27.3]} 14... b4 {[%clk 0:02:46]} 15. Nb1 {[%clk 0:02:27.9]} 15...
a5 {[%clk 0:02:27.8]} 16. Bxe5 {[%clk 0:02:19.2]} 16... dxe5 {[%clk 0:02:28.7]}
17. Qb5+ {[%clk 0:02:19.4]} 17... Ke7 {[%clk 0:02:28.6]} 18. Qe2 {[%clk
0:02:00.8]} 18... Ba6 {[%clk 0:02:23.4]} 19. Qg4 {[%clk 0:02:00.9]} 19... Bxf1
{[%clk 0:02:23.4]} 20. Bxf1 {[%clk 0:02:00.7]} 20... Kf8 {[%clk 0:02:17.8]} 21.
Bb5 {[%clk 0:01:55.4]} 21... Rd8 {[%clk 0:02:17.3]} 22. Rc1 {[%clk 0:01:40.9]}
22... g6 {[%clk 0:02:12.3]} 23. c3 {[%clk 0:01:40]} 23... Kg7 {[%clk 0:02:12.8]}
24. cxb4 {[%clk 0:01:39.4]} 24... Bxf2+ {[%clk 0:02:12.6]} 0-1

[Event "Early-Titled-Tuesday-Blitz-July-09-2024"]
[Site "Chess.com"]
[Date "2024.07.09"]
[Round "6"]
[White "JosefineHeinemann"]
[Black "Ditman2007"]
[Result "0-1"]
[WhiteElo "2519"]
[BlackElo "2717"]
[TimeControl "180+1"]
[EndTime "9:04:56 PDT"]
[Termination "Ditman2007 won by resignation"]

1. c4 {[%clk 0:02:44.6]} 1... c5 {[%clk 0:02:59]} 2. Nc3 {[%clk 0:02:39.7]} 2...
Nc6 {[%clk 0:02:58.5]} 3. g3 {[%clk 0:02:38.1]} 3... g6 {[%clk 0:02:58.3]} 4.
Bg2 {[%clk 0:02:38.3]} 4... Bg7 {[%clk 0:02:59]} 5. Nf3 {[%clk 0:02:38.1]} 5...
e5 {[%clk 0:02:59.3]} 6. a3 {[%clk 0:02:35.6]} 6... d6 {[%clk 0:02:59.5]} 7. b4
{[%clk 0:02:33.1]} 7... Nge7 {[%clk 0:02:53.1]} 8. Rb1 {[%clk 0:02:24.3]} 8...
O-O {[%clk 0:02:52.3]} 9. O-O {[%clk 0:02:17.3]} 9... Rb8 {[%clk 0:02:47.4]} 10.
d3 {[%clk 0:02:16.3]} 10... Nd4 {[%clk 0:02:46.5]} 11. Bg5 {[%clk 0:02:08.7]}
11... f6 {[%clk 0:02:45.2]} 12. Bd2 {[%clk 0:02:07.7]} 12... Be6 {[%clk
0:02:45.5]} 13. bxc5 {[%clk 0:01:29.6]} 13... dxc5 {[%clk 0:02:44.2]} 14. Ne4
{[%clk 0:01:30.3]} 14... b6 {[%clk 0:02:42.4]} 15. Bc3 {[%clk 0:01:30]} 15... h6
{[%clk 0:02:39.4]} 16. Ba1 {[%clk 0:01:24.5]} 16... f5 {[%clk 0:02:31.4]} 17.
Nc3 {[%clk 0:01:23.5]} 17... e4 {[%clk 0:02:32]} 18. dxe4 {[%clk 0:01:19.1]}
18... Bxc4 {[%clk 0:02:32.3]} 19. exf5 {[%clk 0:01:17.4]} 19... Nexf5 {[%clk
0:02:32.5]} 20. Qc2 {[%clk 0:01:07.7]} 20... Nxc2 {[%clk 0:02:32]} 0-1

[Event "Early-Titled-Tuesday-Blitz-July-09-2024"]
[Site "Chess.com"]
[Date "2024.07.09"]
[Round "6"]
[White "Bykov_Egor"]
[Black "Balla_Tamas"]
[Result "1-0"]
[WhiteElo "2685"]
[BlackElo "2477"]
[TimeControl "180+1"]
[EndTime "9:05:25 PDT"]
[Termination "Bykov_Egor won by resignation"]

1. Nf3 {[%clk 0:03:00.9]} 1... c5 {[%clk 0:03:00.1]} 2. g3 {[%clk 0:03:01.4]}
2... d5 {[%clk 0:03:00.3]} 3. Bg2 {[%clk 0:03:02]} 3... Nc6 {[%clk 0:03:00.5]}
4. c3 {[%clk 0:02:59.9]} 4... Nf6 {[%clk 0:02:55.5]} 5. d4 {[%clk 0:02:59.7]}
5... cxd4 {[%clk 0:02:55.8]} 6. cxd4 {[%clk 0:03:00.6]} 6... g6 {[%clk
0:02:50.1]} 7. Nc3 {[%clk 0:02:57.5]} 7... Bg7 {[%clk 0:02:50]} 8. O-O {[%clk
0:02:49.7]} 8... O-O {[%clk 0:02:50]} 9. Ne5 {[%clk 0:02:50.1]} 9... Be6 {[%clk
0:02:32]} 10. Nxc6 {[%clk 0:02:44.8]} 10... bxc6 {[%clk 0:02:32.9]} 11. Na4
{[%clk 0:02:13.4]} 11... Bf5 {[%clk 0:02:19.8]} 12. b3 {[%clk 0:02:06.5]} 12...
Re8 {[%clk 0:02:14.7]} 13. Bf4 {[%clk 0:02:00.7]} 13... Nd7 {[%clk 0:02:13.4]}
14. Rc1 {[%clk 0:01:59.3]} 14... e5 {[%clk 0:02:12.4]} 15. dxe5 {[%clk
0:01:57.4]} 15... Nxe5 {[%clk 0:02:13.1]} 16. Bxe5 {[%clk 0:01:54.7]} 16... Rxe5
{[%clk 0:02:05.6]} 17. Rxc6 {[%clk 0:01:54.9]} 17... Qe8 {[%clk 0:02:05.8]} 18.
Rc7 {[%clk 0:01:34.5]} 18... Rxe2 {[%clk 0:02:04.6]} 19. Bxd5 {[%clk 0:01:26.3]}
19... Re7 {[%clk 0:02:03.5]} 20. Rxe7 {[%clk 0:01:24.8]} 1-0

[Event "Early-Titled-Tuesday-Blitz-July-09-2024"]
[Site "Chess.com"]
[Date "2024.07.09"]
[Round "6"]
[White "IMVadim"]
[Black "vladgoncharov"]
[Result "0-1"]
[WhiteElo "2439"]
[BlackElo "2648"]
[TimeControl "180+1"]
[EndTime "9:05:27 PDT"]
[Termination "vladgoncharov won by resignation"]

1. e4 {[%clk 0:02:45.3]} 1... e6 {[%clk 0:02:59.2]} 2. d4 {[%clk 0:02:44.2]}
2... d5 {[%clk 0:02:59.4]} 3. e5 {[%clk 0:02:44.4]} 3... c5 {[%clk 0:02:59.3]}
4. c3 {[%clk 0:02:45.3]} 4... Nc6 {[%clk 0:02:59.3]} 5. Nf3 {[%clk 0:02:45.6]}
5... Nge7 {[%clk 0:02:59.6]} 6. Na3 {[%clk 0:02:45]} 6... Bd7 {[%clk 0:02:59.3]}
7. Nc2 {[%clk 0:02:44.6]} 7... Qa5 {[%clk 0:02:58.9]} 8. a3 {[%clk 0:02:38.4]}
8... Nxd4 {[%clk 0:02:57.2]} 9. Nfxd4 {[%clk 0:02:32.5]} 9... cxd4 {[%clk
0:02:57]} 10. Nxd4 {[%clk 0:02:33.4]} 10... Nc6 {[%clk 0:02:50.5]} 11. Nxc6
{[%clk 0:02:28.3]} 11... Bxc6 {[%clk 0:02:45.8]} 12. Bd3 {[%clk 0:02:28.8]}
12... d4 {[%clk 0:02:43]} 13. O-O {[%clk 0:02:28.1]} 13... dxc3 {[%clk
0:02:27.1]} 14. Qe2 {[%clk 0:02:25.4]} 14... Qd5 {[%clk 0:02:17]} 15. f3 {[%clk
0:02:19.2]} 15... cxb2 {[%clk 0:02:00.2]} 16. Bxb2 {[%clk 0:02:18.4]} 16... Rd8
{[%clk 0:01:59.4]} 17. Rfd1 {[%clk 0:02:12.6]} 17... Ba4 {[%clk 0:01:45]} 18.
Rd2 {[%clk 0:01:52.2]} 18... Be7 {[%clk 0:01:36.6]} 19. Rc1 {[%clk 0:01:46.2]}
19... Bg5 {[%clk 0:01:33.2]} 0-1

[Event "Early-Titled-Tuesday-Blitz-July-09-2024"]
[Site "Chess.com"]
[Date "2024.07.09"]
[Round "6"]
[White "Alexander_Donchenko"]
[Black "MKlose11"]
[Result "1-0"]
[WhiteElo "2901"]
[BlackElo "2670"]
[TimeControl "180+1"]
[EndTime "9:05:54 PDT"]
[Termination "Alexander_Donchenko won by resignation"]

1. c4 {[%clk 0:03:00.9]} 1... Nf6 {[%clk 0:02:59.7]} 2. g3 {[%clk 0:03:01]} 2...
c5 {[%clk 0:03:00.6]} 3. Bg2 {[%clk 0:03:00.3]} 3... Nc6 {[%clk 0:03:01]} 4. Nc3
{[%clk 0:03:00.1]} 4... d6 {[%clk 0:03:01.5]} 5. Nf3 {[%clk 0:03:00.4]} 5... g6
{[%clk 0:03:00.9]} 6. d4 {[%clk 0:03:00.7]} 6... cxd4 {[%clk 0:03:01.4]} 7. Nxd4
{[%clk 0:03:01.6]} 7... Bd7 {[%clk 0:03:02.1]} 8. Nc2 {[%clk 0:03:02.2]} 8...
Bg7 {[%clk 0:03:02.2]} 9. b3 {[%clk 0:03:02.8]} 9... O-O {[%clk 0:03:02.8]} 10.
Bb2 {[%clk 0:03:02.9]} 10... Qa5 {[%clk 0:03:03.4]} 11. Qd2 {[%clk 0:03:02.6]}
11... Rfe8 {[%clk 0:03:03.4]} 12. h3 {[%clk 0:02:59.6]} 12... a6 {[%clk
0:03:02.4]} 13. O-O {[%clk 0:02:59.4]} 13... Qh5 {[%clk 0:03:02]} 14. g4 {[%clk
0:02:55]} 14... Bxg4 {[%clk 0:02:33.4]} 15. hxg4 {[%clk 0:02:55.9]} 15... Nxg4
{[%clk 0:02:33.6]} 16. Rfd1 {[%clk 0:02:55.6]} 16... Qh2+ {[%clk 0:02:33.5]} 17.
Kf1 {[%clk 0:02:54.9]} 17... Qh4 {[%clk 0:02:31.4]} 18. e3 {[%clk 0:02:40.1]}
18... Nce5 {[%clk 0:02:27.1]} 19. Qe2 {[%clk 0:02:32.1]} 19... f5 {[%clk
0:02:20.7]} 20. Nd4 {[%clk 0:02:26.3]} 20... Rf8 {[%clk 0:02:14.4]} 21. Ne6
{[%clk 0:02:20.8]} 21... Bh6 {[%clk 0:01:43.9]} 22. Nxf8 {[%clk 0:02:16.5]}
22... Rxf8 {[%clk 0:01:42]} 23. Nd5 {[%clk 0:02:15.2]} 23... f4 {[%clk
0:01:37.9]} 24. Bxe5 {[%clk 0:02:07]} 24... fxe3 {[%clk 0:01:23.4]} 25. Nxe7+
{[%clk 0:02:01.3]} 25... Qxe7 {[%clk 0:01:19.7]} 26. Bd5+ {[%clk 0:02:01]} 26...
Rf7 {[%clk 0:01:15.2]} 27. Qxg4 {[%clk 0:01:58.6]} 27... Qxe5 {[%clk 0:01:09.7]}
28. Bxf7+ {[%clk 0:01:55]} 28... Kxf7 {[%clk 0:01:09.6]} 29. Qf3+ {[%clk
0:01:54.1]} 29... Kg8 {[%clk 0:01:09.1]} 30. Qd5+ {[%clk 0:01:53.8]} 1-0

[Event "Early-Titled-Tuesday-Blitz-July-09-2024"]
[Site "Chess.com"]
[Date "2024.07.09"]
[Round "6"]
[White "Boudicca64"]
[Black "UnTucopalaTimba"]
[Result "1-0"]
[WhiteElo "1944"]
[BlackElo "2128"]
[TimeControl "180+1"]
[EndTime "9:06:17 PDT"]
[Termination "Boudicca64 won by resignation"]

1. e4 {[%clk 0:02:53.8]} 1... c6 {[%clk 0:02:59.6]} 2. d4 {[%clk 0:02:43.6]}
2... d5 {[%clk 0:02:59.4]} 3. e5 {[%clk 0:02:42.7]} 3... Bf5 {[%clk 0:02:58.4]}
4. Nf3 {[%clk 0:02:41.9]} 4... e6 {[%clk 0:02:57.7]} 5. Be2 {[%clk 0:02:40.8]}
5... Ne7 {[%clk 0:02:56]} 6. a3 {[%clk 0:02:40.3]} 6... c5 {[%clk 0:02:54.7]} 7.
dxc5 {[%clk 0:02:39.1]} 7... Nbc6 {[%clk 0:02:51.2]} 8. b4 {[%clk 0:02:34.3]}
8... Ng6 {[%clk 0:02:50]} 9. Bb2 {[%clk 0:02:32.7]} 9... a5 {[%clk 0:02:47.6]}
10. b5 {[%clk 0:02:21.5]} 10... Na7 {[%clk 0:02:37.1]} 11. Bd4 {[%clk
0:02:06.8]} 11... Rc8 {[%clk 0:02:34.2]} 12. O-O {[%clk 0:02:03.4]} 12... Bxc5
{[%clk 0:02:32.7]} 13. Nbd2 {[%clk 0:02:00.1]} 13... Qb6 {[%clk 0:02:24.9]} 14.
Bxc5 {[%clk 0:01:57.9]} 14... Rxc5 {[%clk 0:02:24.7]} 15. c4 {[%clk 0:01:50.1]}
15... dxc4 {[%clk 0:02:21.1]} 16. Nxc4 {[%clk 0:01:48.4]} 16... Qd8 {[%clk
0:02:04.1]} 17. Nd6+ {[%clk 0:01:45.8]} 17... Ke7 {[%clk 0:02:00.2]} 18. Nxb7
{[%clk 0:01:40.5]} 18... Qxd1 {[%clk 0:01:59]} 19. Rfxd1 {[%clk 0:01:38.9]}
19... Rc7 {[%clk 0:01:52.1]} 20. Nd6 {[%clk 0:01:34.8]} 20... Rb8 {[%clk
0:01:41.5]} 21. a4 {[%clk 0:01:14.2]} 21... Nf4 {[%clk 0:01:35.6]} 22. Bf1
{[%clk 0:01:10.9]} 22... Nd5 {[%clk 0:01:30.3]} 23. Nxf5+ {[%clk 0:01:08.9]}
23... exf5 {[%clk 0:01:29.7]} 24. Rxd5 {[%clk 0:01:08.5]} 24... Ke6 {[%clk
0:01:27.3]} 25. Rd6+ {[%clk 0:01:06.5]} 25... Ke7 {[%clk 0:01:26.1]} 26. b6
{[%clk 0:01:05.9]} 1-0

[Event "Early-Titled-Tuesday-Blitz-July-09-2024"]
[Site "Chess.com"]
[Date "2024.07.09"]
[Round "6"]
[White "Cheer_Down"]
[Black "ketster"]
[Result "0-1"]
[WhiteElo "2423"]
[BlackElo "2576"]
[TimeControl "180+1"]
[EndTime "9:06:21 PDT"]
[Termination "ketster won by resignation"]

1. e4 {[%clk 0:03:00.9]} 1... c5 {[%clk 0:02:58.8]} 2. Nf3 {[%clk 0:03:00.6]}
2... Nf6 {[%clk 0:02:58.8]} 3. e5 {[%clk 0:02:58.2]} 3... Nd5 {[%clk 0:02:58.8]}
4. Nc3 {[%clk 0:02:58.4]} 4... e6 {[%clk 0:02:59.3]} 5. Ne4 {[%clk 0:02:49.9]}
5... f5 {[%clk 0:02:57.1]} 6. exf6 {[%clk 0:02:49.9]} 6... Nxf6 {[%clk
0:02:56.7]} 7. d3 {[%clk 0:02:44.6]} 7... d5 {[%clk 0:02:55.6]} 8. Ng3 {[%clk
0:02:40.3]} 8... Nc6 {[%clk 0:02:55.3]} 9. d4 {[%clk 0:02:37]} 9... cxd4 {[%clk
0:02:51.9]} 10. Nxd4 {[%clk 0:02:36.9]} 10... Bc5 {[%clk 0:02:52.6]} 11. Bb5
{[%clk 0:02:34.1]} 11... O-O {[%clk 0:02:50.8]} 12. Bxc6 {[%clk 0:02:31.1]}
12... bxc6 {[%clk 0:02:50.7]} 13. O-O {[%clk 0:02:31.7]} 13... Qb6 {[%clk
0:02:48.9]} 14. c3 {[%clk 0:02:30.9]} 14... e5 {[%clk 0:02:48.9]} 15. Nb3 {[%clk
0:02:26]} 15... Bxf2+ {[%clk 0:02:45.2]} 16. Kh1 {[%clk 0:02:22.3]} 16... Ng4
{[%clk 0:02:39]} 17. Bg5 {[%clk 0:02:07]} 17... Bxg3 {[%clk 0:02:22.9]} 18.
Rxf8+ {[%clk 0:02:03.3]} 18... Kxf8 {[%clk 0:02:23.4]} 19. Qf3+ {[%clk
0:01:58.8]} 19... Bf4 {[%clk 0:02:19.7]} 20. Bxf4 {[%clk 0:01:55]} 20... exf4
{[%clk 0:02:19.2]} 21. Qxf4+ {[%clk 0:01:54.2]} 21... Nf6 {[%clk 0:02:17.1]} 22.
Qd6+ {[%clk 0:01:52.6]} 22... Kg8 {[%clk 0:02:10.1]} 23. Nc5 {[%clk 0:01:48]}
23... Bf5 {[%clk 0:02:03.9]} 24. Rf1 {[%clk 0:01:42.9]} 24... Rd8 {[%clk
0:02:01.4]} 25. Qe7 {[%clk 0:01:43.2]} 25... Re8 {[%clk 0:01:57.9]} 26. Qd6
{[%clk 0:01:42.7]} 26... Bc8 {[%clk 0:01:49.5]} 27. b4 {[%clk 0:01:40.1]} 27...
a5 {[%clk 0:01:41.4]} 28. a3 {[%clk 0:01:39.1]} 28... axb4 {[%clk 0:01:41.6]}
29. axb4 {[%clk 0:01:40]} 29... Ba6 {[%clk 0:01:37.7]} 30. Ra1 {[%clk
0:01:37.6]} 30... Bb5 {[%clk 0:01:33.9]} 31. h3 {[%clk 0:01:37.8]} 31... Qd8
{[%clk 0:01:33.9]} 32. Qf4 {[%clk 0:01:34.5]} 32... Ne4 {[%clk 0:01:33.8]} 33.
Nb7 {[%clk 0:01:31.2]} 33... Qf6 {[%clk 0:01:33.6]} 34. Qxf6 {[%clk 0:01:27]}
34... gxf6 {[%clk 0:01:32.9]} 35. Ra7 {[%clk 0:01:25]} 35... Re7 {[%clk
0:01:32.4]} 36. Ra8+ {[%clk 0:01:24.6]} 36... Kf7 {[%clk 0:01:32.1]} 37. Nd8+
{[%clk 0:01:25]} 37... Kg7 {[%clk 0:01:31.8]} 38. Kh2 {[%clk 0:01:21.6]} 38...
Nxc3 {[%clk 0:01:32]} 0-1